[Event "Late-Titled-Tuesday-Blitz-March-05-2024"]
[Site "Chess.com"]
[Date "2024.03.05"]
[Round "3"]
[White "BabageldiAnnaberdiyev"]
[Black "prochn"]
[Result "1/2-1/2"]
[WhiteElo "2625"]
[BlackElo "2481"]
[TimeControl "180+1"]
[EndTime "14:27:29 PST"]
[Termination "Game drawn by repetition"]

1. e4 {[%clk 0:03:00.9]} 1... c6 {[%clk 0:02:59.9]} 2. d4 {[%clk 0:03:00.3]}
2... d5 {[%clk 0:03:00.3]} 3. Nd2 {[%clk 0:03:01.1]} 3... dxe4 {[%clk
0:03:00.2]} 4. Nxe4 {[%clk 0:03:02]} 4... Nf6 {[%clk 0:03:00.2]} 5. Nxf6+ {[%clk
0:03:02]} 5... exf6 {[%clk 0:03:01.1]} 6. Bc4 {[%clk 0:03:02.1]} 6... Bd6 {[%clk
0:03:01.2]} 7. Qe2+ {[%clk 0:03:02.7]} 7... Qe7 {[%clk 0:02:59.7]} 8. Qxe7+
{[%clk 0:03:02.4]} 8... Bxe7 {[%clk 0:02:58.5]} 9. Ne2 {[%clk 0:03:03.3]} 9...
Be6 {[%clk 0:02:50.3]} 10. Bd3 {[%clk 0:03:02.2]} 10... Nd7 {[%clk 0:02:34.7]}
11. Bf4 {[%clk 0:03:01.7]} 11... h5 {[%clk 0:02:29]} 12. O-O-O {[%clk
0:02:51.2]} 12... O-O-O {[%clk 0:02:25.7]} 13. c4 {[%clk 0:02:46.7]} 13... f5
{[%clk 0:02:08.8]} 14. h4 {[%clk 0:02:40.6]} 14... Nf6 {[%clk 0:02:08.1]} 15. f3
{[%clk 0:02:40.7]} 15... Rd7 {[%clk 0:02:03.6]} 16. Kc2 {[%clk 0:02:40]} 16...
Rhd8 {[%clk 0:02:02.9]} 17. Kc3 {[%clk 0:02:39.7]} 17... a6 {[%clk 0:01:59.6]}
18. Bc2 {[%clk 0:02:27.6]} 18... b5 {[%clk 0:01:55.5]} 19. b3 {[%clk 0:02:28.1]}
19... a5 {[%clk 0:01:49.3]} 20. Be5 {[%clk 0:02:20]} 20... Kb7 {[%clk
0:01:41.2]} 21. Nf4 {[%clk 0:02:19.1]} 21... g6 {[%clk 0:01:15.7]} 22. a4 {[%clk
0:01:56.8]} 22... bxc4 {[%clk 0:00:40.4]} 23. bxc4 {[%clk 0:01:55.8]} 23... Ne8
{[%clk 0:00:40.2]} 24. Nxe6 {[%clk 0:01:44]} 24... fxe6 {[%clk 0:00:39.9]} 25.
c5 {[%clk 0:01:36.7]} 25... Bf6 {[%clk 0:00:37.4]} 26. Bb3 {[%clk 0:01:13.7]}
26... Bxe5 {[%clk 0:00:35.3]} 27. dxe5 {[%clk 0:01:14.6]} 27... Rxd1 {[%clk
0:00:34.3]} 28. Bxd1 {[%clk 0:01:14.8]} 28... Nc7 {[%clk 0:00:33.7]} 29. Bb3
{[%clk 0:01:15.3]} 29... Nd5+ {[%clk 0:00:29.9]} 30. Kb2 {[%clk 0:01:15.5]}
30... Kc7 {[%clk 0:00:29.8]} 31. Rd1 {[%clk 0:01:11.9]} 31... Rb8 {[%clk
0:00:29.7]} 32. Ka3 {[%clk 0:01:07]} 32... Rb4 {[%clk 0:00:29.3]} 33. g3 {[%clk
0:01:01.2]} 33... Kb7 {[%clk 0:00:18.9]} 34. Rd3 {[%clk 0:00:54.7]} 34... Kc7
{[%clk 0:00:19.1]} 35. Rd1 {[%clk 0:00:54.9]} 35... Kb7 {[%clk 0:00:19.5]} 36.
Rd3 {[%clk 0:00:55.5]} 36... Kc7 {[%clk 0:00:18.8]} 37. Rd1 {[%clk 0:00:46.7]}
1/2-1/2

[Event "Late-Titled-Tuesday-Blitz-March-05-2024"]
[Site "Chess.com"]
[Date "2024.03.05"]
[Round "3"]
[White "kids2010"]
[Black "WilsonPalencia21"]
[Result "1-0"]
[WhiteElo "2806"]
[BlackElo "2577"]
[TimeControl "180+1"]
[EndTime "14:27:37 PST"]
[Termination "kids2010 won on time"]

1. e4 {[%clk 0:03:00]} 1... c5 {[%clk 0:02:59.8]} 2. Nc3 {[%clk 0:02:58.8]} 2...
Nc6 {[%clk 0:02:59.8]} 3. Bb5 {[%clk 0:02:56.8]} 3... Nd4 {[%clk 0:03:00]} 4.
Bc4 {[%clk 0:02:56.5]} 4... g6 {[%clk 0:02:57.5]} 5. Nf3 {[%clk 0:02:56.1]} 5...
Bg7 {[%clk 0:02:57.9]} 6. Nxd4 {[%clk 0:02:55.8]} 6... cxd4 {[%clk 0:02:58.2]}
7. Qf3 {[%clk 0:02:56.2]} 7... Nh6 {[%clk 0:02:54.7]} 8. Ne2 {[%clk 0:02:51.7]}
8... O-O {[%clk 0:02:54]} 9. d3 {[%clk 0:02:50.9]} 9... Ng4 {[%clk 0:02:36.5]}
10. Bf4 {[%clk 0:02:38.8]} 10... d6 {[%clk 0:02:29.4]} 11. O-O {[%clk
0:02:31.9]} 11... Qa5 {[%clk 0:02:24.1]} 12. h3 {[%clk 0:02:27]} 12... Ne5
{[%clk 0:02:23.8]} 13. Bxe5 {[%clk 0:02:25.2]} 13... Bxe5 {[%clk 0:02:13.2]} 14.
Bb3 {[%clk 0:02:16.8]} 14... Kg7 {[%clk 0:02:12.2]} 15. Rad1 {[%clk 0:01:57]}
15... f5 {[%clk 0:02:09.6]} 16. c3 {[%clk 0:01:49.1]} 16... dxc3 {[%clk
0:01:57.8]} 17. d4 {[%clk 0:01:46.8]} 17... c2 {[%clk 0:01:52.4]} 18. Bxc2
{[%clk 0:01:36.3]} 18... fxe4 {[%clk 0:01:40.6]} 19. Qe3 {[%clk 0:01:35.3]}
19... Bf6 {[%clk 0:01:31.4]} 20. Bxe4 {[%clk 0:01:31.3]} 20... Qb6 {[%clk
0:01:12.2]} 21. Nc3 {[%clk 0:01:25.3]} 21... e6 {[%clk 0:00:58.2]} 22. Bf3
{[%clk 0:01:18.7]} 22... Qxb2 {[%clk 0:00:53.4]} 23. Rb1 {[%clk 0:01:18]} 23...
Qa3 {[%clk 0:00:51.7]} 24. Bxb7 {[%clk 0:01:17.1]} 24... Rb8 {[%clk 0:00:40.7]}
25. Rb3 {[%clk 0:00:55.2]} 25... Qa5 {[%clk 0:00:27.1]} 26. Bxc8 {[%clk
0:00:55.2]} 26... Rxb3 {[%clk 0:00:17.9]} 27. axb3 {[%clk 0:00:56.1]} 27... Rxc8
{[%clk 0:00:17.1]} 28. Ne4 {[%clk 0:00:56.8]} 28... Be7 {[%clk 0:00:13]} 29. Re1
{[%clk 0:00:50.7]} 29... Re8 {[%clk 0:00:10.9]} 30. Nd2 {[%clk 0:00:45.5]} 30...
Bf6 {[%clk 0:00:09.3]} 31. Nc4 {[%clk 0:00:42.3]} 31... Qb4 {[%clk 0:00:06.1]}
32. d5 {[%clk 0:00:39.6]} 1-0

[Event "Late-Titled-Tuesday-Blitz-March-05-2024"]
[Site "Chess.com"]
[Date "2024.03.05"]
[Round "3"]
[White "StiffMaster1"]
[Black "Grindaveci"]
[Result "1-0"]
[WhiteElo "2600"]
[BlackElo "2436"]
[TimeControl "180+1"]
[EndTime "14:27:37 PST"]
[Termination "StiffMaster1 won by resignation"]

1. Nf3 {[%clk 0:03:00.9]} 1... d5 {[%clk 0:03:00.1]} 2. g3 {[%clk 0:03:01.2]}
2... Nf6 {[%clk 0:03:00.5]} 3. Bg2 {[%clk 0:03:02]} 3... e6 {[%clk 0:03:01]} 4.
O-O {[%clk 0:03:02.8]} 4... c5 {[%clk 0:03:01.4]} 5. c4 {[%clk 0:03:03.3]} 5...
d4 {[%clk 0:02:59.3]} 6. e3 {[%clk 0:03:03.4]} 6... Nc6 {[%clk 0:02:59.7]} 7.
exd4 {[%clk 0:03:02.9]} 7... cxd4 {[%clk 0:03:00.6]} 8. d3 {[%clk 0:03:01.2]}
8... Be7 {[%clk 0:02:59.7]} 9. Re1 {[%clk 0:03:00.3]} 9... O-O {[%clk
0:03:00.1]} 10. b3 {[%clk 0:02:59]} 10... a5 {[%clk 0:02:56.9]} 11. Ba3 {[%clk
0:02:59.2]} 11... a4 {[%clk 0:02:53.7]} 12. Bxe7 {[%clk 0:02:53.3]} 12... Qxe7
{[%clk 0:02:53.4]} 13. Ne5 {[%clk 0:02:39.2]} 13... Nxe5 {[%clk 0:02:29.5]} 14.
Rxe5 {[%clk 0:02:40.1]} 14... Nd7 {[%clk 0:02:28.8]} 15. Rb5 {[%clk 0:02:37]}
15... axb3 {[%clk 0:02:26.4]} 16. Qxb3 {[%clk 0:02:35.2]} 16... Ra7 {[%clk
0:02:14.9]} 17. a4 {[%clk 0:02:22.3]} 17... Nc5 {[%clk 0:02:12.6]} 18. Qb4
{[%clk 0:02:18.7]} 18... b6 {[%clk 0:02:13.3]} 19. Rxb6 {[%clk 0:02:08.3]} 19...
Nxd3 {[%clk 0:02:13.1]} 20. Qxe7 {[%clk 0:02:09]} 20... Rxe7 {[%clk 0:02:13.7]}
21. a5 {[%clk 0:02:06.1]} 21... Ra7 {[%clk 0:02:01]} 22. Nd2 {[%clk 0:01:53.8]}
22... Rd8 {[%clk 0:01:54.8]} 23. Nb3 {[%clk 0:01:47.5]} 23... Ba6 {[%clk
0:01:49.4]} 24. c5 {[%clk 0:01:46.9]} 24... Bc4 {[%clk 0:01:49.2]} 25. c6 {[%clk
0:01:46.4]} 25... Bxb3 {[%clk 0:01:30.6]} 26. Rxb3 {[%clk 0:01:47.3]} 26... Nc5
{[%clk 0:01:27.3]} 27. Rb5 {[%clk 0:01:29.8]} 27... Na6 {[%clk 0:01:15]} 28. Rb7
{[%clk 0:01:23.3]} 28... Rxb7 {[%clk 0:01:08.9]} 29. cxb7 {[%clk 0:01:24.2]}
29... d3 {[%clk 0:01:08.5]} 30. Bf1 {[%clk 0:01:16.4]} 30... e5 {[%clk
0:01:00.5]} 31. Rc1 {[%clk 0:00:51.4]} 31... d2 {[%clk 0:00:46.6]} 32. Rd1
{[%clk 0:00:49.4]} 32... Nc5 {[%clk 0:00:43.8]} 33. a6 {[%clk 0:00:39.3]} 33...
Kf8 {[%clk 0:00:36.2]} 34. Rxd2 {[%clk 0:00:34.3]} 34... Rb8 {[%clk 0:00:34.5]}
35. Rc2 {[%clk 0:00:29.4]} 35... Nd7 {[%clk 0:00:30.8]} 36. a7 {[%clk 0:00:27]}
1-0

[Event "Late-Titled-Tuesday-Blitz-March-05-2024"]
[Site "Chess.com"]
[Date "2024.03.05"]
[Round "3"]
[White "ritanovikova"]
[Black "LangesNasenhaar"]
[Result "1/2-1/2"]
[WhiteElo "2217"]
[BlackElo "2526"]
[TimeControl "180+1"]
[EndTime "14:27:39 PST"]
[Termination "Game drawn by repetition"]

1. e4 {[%clk 0:02:58.4]} 1... d6 {[%clk 0:03:00.4]} 2. d4 {[%clk 0:02:58.4]}
2... Nf6 {[%clk 0:03:01]} 3. Nc3 {[%clk 0:02:57.5]} 3... e5 {[%clk 0:03:01.7]}
4. dxe5 {[%clk 0:02:57.6]} 4... dxe5 {[%clk 0:03:02.6]} 5. Qxd8+ {[%clk
0:02:55.9]} 5... Kxd8 {[%clk 0:03:03.5]} 6. h3 {[%clk 0:02:53.8]} 6... Be6
{[%clk 0:02:56.7]} 7. Nf3 {[%clk 0:02:53.9]} 7... Bd6 {[%clk 0:02:55.1]} 8. Bg5
{[%clk 0:02:53.2]} 8... Nd7 {[%clk 0:02:54.9]} 9. O-O-O {[%clk 0:02:51.9]} 9...
Ke7 {[%clk 0:02:53.8]} 10. Nd5+ {[%clk 0:02:47.2]} 10... Bxd5 {[%clk 0:02:52.4]}
11. exd5 {[%clk 0:02:48.1]} 11... h6 {[%clk 0:02:50.6]} 12. Bh4 {[%clk
0:02:46.4]} 12... g5 {[%clk 0:02:37.8]} 13. Bg3 {[%clk 0:02:45]} 13... Ne4
{[%clk 0:02:29.7]} 14. Bd3 {[%clk 0:01:50.4]} 14... f5 {[%clk 0:02:08.9]} 15.
Bxe4 {[%clk 0:01:47.4]} 15... fxe4 {[%clk 0:02:05.6]} 16. Nd2 {[%clk 0:01:40.4]}
16... Nc5 {[%clk 0:01:59.8]} 17. b4 {[%clk 0:01:33.5]} 17... Nd7 {[%clk
0:01:53.2]} 18. c3 {[%clk 0:01:23.3]} 18... a5 {[%clk 0:01:50.7]} 19. b5 {[%clk
0:01:22.8]} 19... Nc5 {[%clk 0:01:48.5]} 20. Rhe1 {[%clk 0:01:21.1]} 20... Nd3+
{[%clk 0:01:48.2]} 21. Kc2 {[%clk 0:01:18.2]} 21... Nxe1+ {[%clk 0:01:48.1]} 22.
Rxe1 {[%clk 0:01:19.1]} 22... Rhf8 {[%clk 0:01:21.6]} 23. Nxe4 {[%clk
0:01:15.1]} 23... Kd7 {[%clk 0:01:22.1]} 24. c4 {[%clk 0:01:14.5]} 24... b6
{[%clk 0:01:22.1]} 25. Re2 {[%clk 0:01:05.2]} 25... a4 {[%clk 0:01:16.3]} 26. f3
{[%clk 0:00:51.5]} 26... a3 {[%clk 0:01:15.5]} 27. Kb3 {[%clk 0:00:50.7]} 27...
Rf5 {[%clk 0:00:53.2]} 28. Nf2 {[%clk 0:00:43.1]} 28... h5 {[%clk 0:00:47.7]}
29. Nd3 {[%clk 0:00:42.4]} 29... Re8 {[%clk 0:00:41]} 30. Re4 {[%clk 0:00:34.7]}
30... Re7 {[%clk 0:00:25.7]} 31. Bh2 {[%clk 0:00:34.2]} 31... Re8 {[%clk
0:00:24.8]} 32. Bg3 {[%clk 0:00:32.6]} 32... Re7 {[%clk 0:00:23.4]} 33. Bh2
{[%clk 0:00:32.5]} 33... Re8 {[%clk 0:00:24]} 34. Bg3 {[%clk 0:00:29.3]} 1/2-1/2

[Event "Late-Titled-Tuesday-Blitz-March-05-2024"]
[Site "Chess.com"]
[Date "2024.03.05"]
[Round "3"]
[White "LiemLe"]
[Black "CarlosjPineror"]
[Result "1/2-1/2"]
[WhiteElo "3056"]
[BlackElo "2741"]
[TimeControl "180+1"]
[EndTime "14:27:41 PST"]
[Termination "Game drawn by agreement"]

1. d4 {[%clk 0:03:00.9]} 1... Nf6 {[%clk 0:02:59.1]} 2. c4 {[%clk 0:03:01.4]}
2... e6 {[%clk 0:02:59.1]} 3. Nc3 {[%clk 0:03:00.8]} 3... Bb4 {[%clk 0:02:59.5]}
4. Nf3 {[%clk 0:03:01.5]} 4... O-O {[%clk 0:02:58.8]} 5. Bd2 {[%clk 0:02:59.5]}
5... b6 {[%clk 0:02:56.8]} 6. e3 {[%clk 0:02:58.6]} 6... Bb7 {[%clk 0:02:56.2]}
7. Bd3 {[%clk 0:02:58.4]} 7... Bxc3 {[%clk 0:02:56.7]} 8. Bxc3 {[%clk
0:02:58.5]} 8... Ne4 {[%clk 0:02:57.4]} 9. Rc1 {[%clk 0:02:53.3]} 9... d6 {[%clk
0:02:55.2]} 10. O-O {[%clk 0:02:52]} 10... Nd7 {[%clk 0:02:54.5]} 11. Be1 {[%clk
0:02:51.8]} 11... f5 {[%clk 0:02:53.6]} 12. Nd2 {[%clk 0:02:49.7]} 12... e5
{[%clk 0:02:42.9]} 13. f3 {[%clk 0:02:42.7]} 13... Nxd2 {[%clk 0:02:41.4]} 14.
Qxd2 {[%clk 0:02:43.6]} 14... Qe7 {[%clk 0:02:35.6]} 15. Bc2 {[%clk 0:02:40.4]}
15... c5 {[%clk 0:02:29.5]} 16. Bf2 {[%clk 0:02:34.7]} 16... Rad8 {[%clk
0:02:28.6]} 17. Rcd1 {[%clk 0:02:31.3]} 17... g6 {[%clk 0:02:21.2]} 18. d5
{[%clk 0:02:20.5]} 18... Rde8 {[%clk 0:02:16.6]} 19. Qc3 {[%clk 0:02:11.9]}
19... Bc8 {[%clk 0:02:06.9]} 20. f4 {[%clk 0:02:09.5]} 20... exf4 {[%clk
0:01:44.3]} 21. exf4 {[%clk 0:02:10.4]} 21... Qf6 {[%clk 0:01:44.8]} 22. Be1
{[%clk 0:01:38.7]} 22... Qxc3 {[%clk 0:01:41.6]} 23. Bxc3 {[%clk 0:01:39.6]}
23... Kf7 {[%clk 0:01:35.9]} 24. Rfe1 {[%clk 0:01:28]} 24... Nf6 {[%clk
0:01:35.7]} 25. h3 {[%clk 0:01:22.3]} 25... Bd7 {[%clk 0:01:35.1]} 26. Kf2
{[%clk 0:01:20.3]} 26... a6 {[%clk 0:01:34]} 27. Kf3 {[%clk 0:01:09.6]} 27... b5
{[%clk 0:01:32.2]} 28. b3 {[%clk 0:01:00.6]} 28... b4 {[%clk 0:01:30.1]} 29. Bb2
{[%clk 0:00:56.4]} 29... a5 {[%clk 0:01:30.7]} 30. a4 {[%clk 0:00:54.7]} 30...
Ne4 {[%clk 0:01:01.4]} 31. g4 {[%clk 0:00:44.3]} 31... Nf6 {[%clk 0:00:59.5]}
32. gxf5 {[%clk 0:00:30.6]} 32... Bxf5 {[%clk 0:00:58.7]} 33. Bxf5 {[%clk
0:00:27.3]} 33... gxf5 {[%clk 0:00:59.6]} 34. Rxe8 {[%clk 0:00:19]} 34... Rxe8
{[%clk 0:00:59.3]} 35. Rg1 {[%clk 0:00:19.7]} 35... Rg8 {[%clk 0:00:55.4]} 36.
Rxg8 {[%clk 0:00:17.9]} 36... Nxg8 {[%clk 0:00:55]} 37. Kg3 {[%clk 0:00:17.8]}
37... Nf6 {[%clk 0:00:51.2]} 38. Bxf6 {[%clk 0:00:17.4]} 38... Kxf6 {[%clk
0:00:51.2]} 39. Kh4 {[%clk 0:00:17.9]} 39... Kg6 {[%clk 0:00:50.7]} 40. Kg3
{[%clk 0:00:18.3]} 40... Kh6 {[%clk 0:00:50.4]} 41. Kf3 {[%clk 0:00:18.2]} 41...
Kg6 {[%clk 0:00:50.6]} 42. Kg3 {[%clk 0:00:18.8]} 42... Kh5 {[%clk 0:00:50.9]}
43. Kf3 {[%clk 0:00:18.7]} 43... Kh4 {[%clk 0:00:51.5]} 44. Kg2 {[%clk
0:00:19.2]} 44... Kh5 {[%clk 0:00:51.9]} 45. Kg3 {[%clk 0:00:19.5]} 45... Kg6
{[%clk 0:00:50.4]} 46. Kf3 {[%clk 0:00:19.8]} 46... Kh6 {[%clk 0:00:50.7]} 47.
Kg3 {[%clk 0:00:20.3]} 47... Kh5 {[%clk 0:00:51]} 48. Kf3 {[%clk 0:00:20.5]}
1/2-1/2

[Event "Late-Titled-Tuesday-Blitz-March-05-2024"]
[Site "Chess.com"]
[Date "2024.03.05"]
[Round "3"]
[White "igorkovalenko"]
[Black "Harry_Rakkel"]
[Result "1-0"]
[WhiteElo "2941"]
[BlackElo "2691"]
[TimeControl "180+1"]
[EndTime "14:27:44 PST"]
[Termination "igorkovalenko won on time"]

1. e4 {[%clk 0:03:00.9]} 1... c5 {[%clk 0:02:59]} 2. Nf3 {[%clk 0:03:00.4]} 2...
e6 {[%clk 0:02:59]} 3. c3 {[%clk 0:03:00.3]} 3... Nf6 {[%clk 0:02:58]} 4. e5
{[%clk 0:03:00]} 4... Nd5 {[%clk 0:02:57.8]} 5. d4 {[%clk 0:03:00.8]} 5... cxd4
{[%clk 0:02:57.4]} 6. cxd4 {[%clk 0:03:01.7]} 6... d6 {[%clk 0:02:56.8]} 7. Bc4
{[%clk 0:02:53]} 7... Nb6 {[%clk 0:02:54.6]} 8. Bd3 {[%clk 0:02:37.1]} 8... Bd7
{[%clk 0:02:51.3]} 9. Nc3 {[%clk 0:02:33.5]} 9... Bc6 {[%clk 0:02:49.2]} 10. O-O
{[%clk 0:02:33.9]} 10... h6 {[%clk 0:02:45.8]} 11. Re1 {[%clk 0:02:29.8]} 11...
Be7 {[%clk 0:02:35.6]} 12. Bc2 {[%clk 0:02:26.8]} 12... Na6 {[%clk 0:02:20.4]}
13. a3 {[%clk 0:02:21.7]} 13... Nc7 {[%clk 0:02:18.1]} 14. exd6 {[%clk
0:02:06.8]} 14... Bxd6 {[%clk 0:02:06.4]} 15. Qd3 {[%clk 0:02:00.2]} 15... Nbd5
{[%clk 0:01:57.9]} 16. Ne4 {[%clk 0:01:50.8]} 16... Nf6 {[%clk 0:01:31.7]} 17.
Nxd6+ {[%clk 0:01:44.2]} 17... Qxd6 {[%clk 0:01:31.1]} 18. Ne5 {[%clk
0:01:45.1]} 18... Rd8 {[%clk 0:01:26.6]} 19. Qg3 {[%clk 0:01:39.5]} 19... g5
{[%clk 0:01:19.1]} 20. Bd2 {[%clk 0:01:24.7]} 20... Nb5 {[%clk 0:01:09.3]} 21.
Bb4 {[%clk 0:01:16.8]} 21... Qd5 {[%clk 0:01:04.6]} 22. Bb3 {[%clk 0:01:05.8]}
22... Qxd4 {[%clk 0:00:23.5]} 23. Rad1 {[%clk 0:01:04.8]} 23... Qb6 {[%clk
0:00:19]} 24. Nxc6 {[%clk 0:00:22.1]} 24... bxc6 {[%clk 0:00:15.1]} 25. Qe5
{[%clk 0:00:21.8]} 25... c5 {[%clk 0:00:01.2]} 26. Qxf6 {[%clk 0:00:17.8]} 1-0

[Event "Late-Titled-Tuesday-Blitz-March-05-2024"]
[Site "Chess.com"]
[Date "2024.03.05"]
[Round "3"]
[White "Sandstad"]
[Black "TheMagician"]
[Result "1-0"]
[WhiteElo "2470"]
[BlackElo "2211"]
[TimeControl "180+1"]
[EndTime "14:27:45 PST"]
[Termination "Sandstad won by checkmate"]

1. e4 {[%clk 0:02:56.3]} 1... d5 {[%clk 0:02:57.6]} 2. exd5 {[%clk 0:02:52]}
2... Qxd5 {[%clk 0:02:57.1]} 3. Nc3 {[%clk 0:02:52.3]} 3... Qa5 {[%clk
0:02:57.1]} 4. d4 {[%clk 0:02:50.6]} 4... Nf6 {[%clk 0:02:56.7]} 5. Bc4 {[%clk
0:02:50.6]} 5... Bg4 {[%clk 0:02:55.7]} 6. f3 {[%clk 0:02:50.1]} 6... Bc8 {[%clk
0:02:48]} 7. Ne2 {[%clk 0:02:49.8]} 7... c6 {[%clk 0:02:40.4]} 8. Bf4 {[%clk
0:02:36.3]} 8... Nd5 {[%clk 0:02:39.8]} 9. Bd2 {[%clk 0:02:34.7]} 9... Nxc3
{[%clk 0:02:37.9]} 10. Bxc3 {[%clk 0:02:31.8]} 10... Qd8 {[%clk 0:02:29.4]} 11.
Qd2 {[%clk 0:02:17.6]} 11... e6 {[%clk 0:02:27.5]} 12. h4 {[%clk 0:02:05]} 12...
Nd7 {[%clk 0:02:24.8]} 13. a4 {[%clk 0:02:03.6]} 13... Nb6 {[%clk 0:02:16.4]}
14. Bb3 {[%clk 0:01:56.3]} 14... Nd5 {[%clk 0:02:15.1]} 15. h5 {[%clk
0:01:49.6]} 15... Nxc3 {[%clk 0:02:13.1]} 16. Nxc3 {[%clk 0:01:49.2]} 16... h6
{[%clk 0:02:07.6]} 17. O-O-O {[%clk 0:01:38.2]} 17... Bb4 {[%clk 0:02:02.8]} 18.
Qe3 {[%clk 0:01:31.5]} 18... O-O {[%clk 0:01:52.5]} 19. g4 {[%clk 0:01:16.3]}
19... b5 {[%clk 0:01:24.5]} 20. axb5 {[%clk 0:01:08.4]} 20... cxb5 {[%clk
0:01:23.9]} 21. Ne4 {[%clk 0:01:05.6]} 21... Bb7 {[%clk 0:01:20.8]} 22. Rhg1
{[%clk 0:00:56.3]} 22... Bxe4 {[%clk 0:01:16.5]} 23. Qxe4 {[%clk 0:00:54.4]}
23... Bd6 {[%clk 0:01:07.8]} 24. c3 {[%clk 0:00:41.7]} 24... Qf6 {[%clk
0:01:05]} 25. Kb1 {[%clk 0:00:35.8]} 25... Bf4 {[%clk 0:01:00.5]} 26. Bc2 {[%clk
0:00:31.7]} 26... Rfd8 {[%clk 0:00:55.1]} 27. d5 {[%clk 0:00:26.1]} 27... Kf8
{[%clk 0:00:44.5]} 28. dxe6 {[%clk 0:00:24.8]} 28... fxe6 {[%clk 0:00:42.3]} 29.
Qh7 {[%clk 0:00:20]} 29... Ke7 {[%clk 0:00:38.8]} 30. Rge1 {[%clk 0:00:19.3]}
30... Rxd1+ {[%clk 0:00:38.5]} 31. Rxd1 {[%clk 0:00:19.1]} 31... Rd8 {[%clk
0:00:37.6]} 32. Rxd8 {[%clk 0:00:19.2]} 32... Kxd8 {[%clk 0:00:37.6]} 33. Qg8+
{[%clk 0:00:19.6]} 33... Kc7 {[%clk 0:00:37.5]} 34. Qa8 {[%clk 0:00:19.4]} 34...
Kb6 {[%clk 0:00:36.8]} 35. Be4 {[%clk 0:00:19.3]} 35... Qe7 {[%clk 0:00:34.9]}
36. Qc6+ {[%clk 0:00:19.4]} 36... Ka5 {[%clk 0:00:32.7]} 37. b4+ {[%clk
0:00:20]} 37... Ka4 {[%clk 0:00:32.8]} 38. Bc2+ {[%clk 0:00:19.9]} 38... Ka3
{[%clk 0:00:30.3]} 39. Qa6# {[%clk 0:00:20.8]} 1-0

[Event "Late-Titled-Tuesday-Blitz-March-05-2024"]
[Site "Chess.com"]
[Date "2024.03.05"]
[Round "3"]
[White "DonBroca"]
[Black "Walter_White_Poland"]
[Result "0-1"]
[WhiteElo "2142"]
[BlackElo "2373"]
[TimeControl "180+1"]
[EndTime "14:27:46 PST"]
[Termination "Walter_White_Poland won by checkmate"]

1. e4 {[%clk 0:03:00.9]} 1... e5 {[%clk 0:02:59.1]} 2. Nf3 {[%clk 0:03:00.4]}
2... Nc6 {[%clk 0:02:59.1]} 3. Bb5 {[%clk 0:03:00.2]} 3... a6 {[%clk 0:02:58.4]}
4. Ba4 {[%clk 0:03:00.6]} 4... Nf6 {[%clk 0:02:58.5]} 5. O-O {[%clk 0:03:00.3]}
5... Be7 {[%clk 0:02:57.6]} 6. Re1 {[%clk 0:02:55.8]} 6... b5 {[%clk 0:02:57.4]}
7. Bb3 {[%clk 0:02:55.5]} 7... O-O {[%clk 0:02:58.3]} 8. h3 {[%clk 0:02:50.4]}
8... Bb7 {[%clk 0:02:56.7]} 9. c3 {[%clk 0:02:43.2]} 9... d5 {[%clk 0:02:56.5]}
10. exd5 {[%clk 0:02:29.6]} 10... Nxd5 {[%clk 0:02:57.4]} 11. d3 {[%clk
0:02:29.9]} 11... f6 {[%clk 0:02:15.8]} 12. a4 {[%clk 0:02:02.5]} 12... Kh8
{[%clk 0:02:10.8]} 13. Na3 {[%clk 0:01:50]} 13... b4 {[%clk 0:01:57.9]} 14. Nb1
{[%clk 0:00:55.8]} 14... a5 {[%clk 0:01:45.9]} 15. d4 {[%clk 0:00:48]} 15...
exd4 {[%clk 0:01:29.2]} 16. Nxd4 {[%clk 0:00:48.5]} 16... Nxd4 {[%clk
0:00:57.1]} 17. Qxd4 {[%clk 0:00:25.8]} 17... c5 {[%clk 0:00:55.5]} 18. Qh4
{[%clk 0:00:26.3]} 18... f5 {[%clk 0:00:47.3]} 19. Qh5 {[%clk 0:00:20.5]} 19...
Nf6 {[%clk 0:00:32.9]} 20. Qe2 {[%clk 0:00:18.6]} 20... Bd6 {[%clk 0:00:26.9]}
21. Be3 {[%clk 0:00:18.6]} 21... f4 {[%clk 0:00:25.3]} 22. Bd2 {[%clk 0:00:17]}
22... f3 {[%clk 0:00:24.7]} 23. gxf3 {[%clk 0:00:15]} 23... Nh5 {[%clk
0:00:19.3]} 24. f4 {[%clk 0:00:13.3]} 24... Nxf4 {[%clk 0:00:16.8]} 25. Bxf4
{[%clk 0:00:13.5]} 25... Bxf4 {[%clk 0:00:16.9]} 26. Qg4 {[%clk 0:00:14.1]}
26... Rf6 {[%clk 0:00:13.3]} 27. Kf1 {[%clk 0:00:09.8]} 27... Qd3+ {[%clk
0:00:11.9]} 28. Qe2 {[%clk 0:00:10.2]} 28... Qxh3+ {[%clk 0:00:11.1]} 29. Kg1
{[%clk 0:00:10.8]} 29... Qg2# {[%clk 0:00:11]} 0-1